Cogmind - Beta 11.1 @@@ ROGUE MODE // 2022.09.20 @ 17:45:12 Player: DuckBoy Result: Destroyed by D-53 Grenadier with Mini Grenade Launcher Performance ------------- Evolutions (0) 0 Regions Visited (2) 400 Robots Destroyed (21) 105 Value Destroyed (366) 366 Prototype IDs (0) 0 Alien Tech Used (0) 0 Bonus (18) 18 TOTAL SCORE: 889 Bonus ------- High Alert Combat Kills 18 Cogmind --------- Core Integrity 0/250 Matter 251/300 Energy 99/100 System Corruption 0% Temperature Cool (0) Movement Core (50) Location -10/Mines Parts ------- > --- POWER (1) -------- (None) > --- PROPULSION (2) --- (None) > --- UTILITY (2) ------ (None) > --- WEAPON (2) ------- (None) > --- INVENTORY (5) ---- Ion Engine Aluminum Leg Seismic Detector Hardened Light Armor Plating Hardened Light Armor Plating Peak State ------------ > --- POWER ------------ Ion Engine > --- PROPULSION ------- Aluminum Leg Aluminum Leg > --- UTILITY ---------- Small Storage Unit Improved Terrain Scanner > --- WEAPON ----------- Small Laser Assault Rifle > --- INVENTORY -------- Seismic Detector Small Laser Mining Laser [Rating: 9] Favorites ----------- Power Ion Engine Engine Ion Engine Propulsion Aluminum Leg Leg Aluminum Leg Utility Small Storage Unit Device Improved Terrain Scanner Storage Small Storage Unit Processor Signal Interpreter Weapon Assault Rifle Energy Gun Small Laser Ballistic Gun Assault Rifle Special Weapon Mining Laser Impact Weapon Maul Build | -11 -10 -10 ------- Run | Scr Mat Min Slots Evolved . | . . . Power . | . . . Propulsion . | . . . Utility . | . . . Weapon . | . . . Parts Attached 20 | 7 10 3 Power 2 | 1 1 . Engine 2 | 1 1 . Core . | . . . Reactor . | . . . Propulsion 8 | 2 4 2 Treads . | . . . Leg 8 | 2 4 2 Wheel . | . . . Hover . | . . . Flight . | . . . Utility 4 | 2 2 . Device 1 | 1 . . Storage 2 | 1 1 . Processor 1 | . 1 . Hackware . | . . . Protection . | . . . Artifact . | . . . Weapon 6 | 2 3 1 Energy Gun 1 | 1 . . Energy Cannon . | . . . Ballistic Gun 3 | 1 1 1 Ballistic Cannon . | . . . Launcher . | . . . Special Weapon 1 | . 1 . Impact Weapon 1 | . 1 . Slashing Weapon . | . . . Piercing Weapon . | . . . Special Melee Weapon . | . . . Unidentified Prototypes . | . . . Parts Lost 5 | . 1 4 Power 1 | . . 1 Propulsion 1 | . . 1 Utility 1 | . 1 . Weapon 2 | . . 2 Highest Loss Streak 4 | . 1 4 To Critical Strikes . | . . . Average Slot Usage (%) 97 | . 97 96 Engine 14 | . 14 14 Leg 28 | . 28 28 Device 1 | . 2 . Storage 14 | . 14 14 Processor 9 | . 9 14 Energy Gun 4 | . 4 . Ballistic Gun 18 | . 19 12 Impact Weapon 4 | . 3 12 Naked Turns 2 | . . 2 Heaviest Build 30 | 14 30 30 Greatest Support 20 | 20 20 20 Greatest Overweight (x) 1 | 1 1 1 Average Overweight (x) . | . . . Largest Inventory Capacity 15 | 8 15 15 Average Capacity 9 | 7 8 14 Most Carried 9 | 3 9 9 Average Carried 5 | 2 6 8 Final Capacity 15 | 8 15 5 Final Carried 9 | 3 9 5 Class Distribution -------------------- 100% | Mutant Dominant Class ---------------- Mutant | -10/Materials Mutant | -10/Mines Resources | -11 -10 -10 ----------- Run | Scr Mat Min Matter Collected 533 | 222 311 . Remotely . | . . . Salvage Created 472 | 55 417 . Parts 53 | 13 40 . Haulers Intercepted . | . . . Recyclers Shooed . | . . . Parts Field Recycled . | . . . Retrieved Matter . | . . . Parts Self-Destructed . | . . . Prevented . | . . . Kills | -11 -10 -10 ------- Run | Scr Mat Min Combat Hostiles Destroyed 16 | . 16 . Guns 16 | . 16 . Classes Destroyed 5 | 2 3 . Worker 1 | 1 . . Tunneler 3 | 3 . . Watcher 1 | . 1 . Swarmer 9 | . 9 . Grunt 7 | . 7 . Best Kill Streak 10 | 1 10 . Combat Bots Only 9 | . 9 . Max Kills in Single Turn 2 | 1 2 . Gunslinging . | . . . Exploded . | . . . Melee . | . . . Uniques/NPCs Destroyed . | . . . Combat | -11 -10 -10 -------- Run | Scr Mat Min Damage Taken 1027 | . 499 528 Core 296 | . 117 179 Absorbed by Shields . | . . . Core Remaining (%) 100 | 100 . . Volleys Fired 59 | 15 42 2 Largest 2 | 2 2 2 Hottest 100 | 60 100 40 Shots Fired 115 | 30 82 3 Gun 113 | 30 80 3 Cannon . | . . . Launcher . | . . . Special 2 | . 2 . Kinetic 69 | 15 51 3 Thermal 46 | 15 31 . Explosive . | . . . Electromagnetic . | . . . Robot Hit Streak 11 | 5 11 5 Robot Miss Streak 3 | 3 2 . Penetration Max . | . . . Secondary Targets 3 | . 3 . Max Gunslinging Chain 1 | . 1 . Shots Hit Robots 77 | 19 55 3 Core Hits 29 | 4 24 1 Critical Kills . | . . . Critical Parts Destroyed . | . . . Critical Strikes . | . . . Melee Attacks 6 | . 6 . Impact 6 | . 6 . Slashing . | . . . Piercing . | . . . Sneak Attacks . | . . . Combat Hostiles . | . . . Follow-up Attacks . | . . . Damage Inflicted 954 | 221 696 37 Guns 954 | 221 696 37 Cannons . | . . . Explosions . | . . . Melee . | . . . Ramming . | . . . Kinetic 601 | 138 426 37 Thermal 353 | 83 270 . Explosive . | . . . Electromagnetic . | . . . Impact . | . . . Slashing . | . . . Piercing . | . . . Highest Corruption . | . . . Average Corruption . | . . . Corruption Purged . | . . . Corruption Blocked . | . . . Overload Shots . | . . . Overflow Damage . | . . . Projectiles . | . . . Explosions . | . . . Melee . | . . . Knockbacks . | . . . Impact . | . . . Kinetic . | . . . Secondary . | . . . Self-Inflicted Damage . | . . . Shots . | . . . Rammed . | . . . Targets Rammed . | . . . Kicked . | . . . Crushed . | . . . Highest Temperature 48 | . 48 . Average Temperature 21 | . 21 . Received Heat Transfer 126 | . 126 . Siege Activations . | . . . Robots Corrupted . | . . . Combat Hostiles . | . . . Parts Fried . | . . . Impact Corruptions . | . . . Robots Melted . | . . . Combat Hostiles . | . . . Parts Melted . | . . . Heat Transferred 800 | 200 600 . Parts Sabotaged . | . . . Parts Stolen . | . . . Parts Stripped . | . . . Power Chain Reactions . | . . . Missiles Intercepted . | . . . Alert | -11 -10 -10 ------- Run | Scr Mat Min Peak Influence 463 | 20 463 15 Initial 13 | . 13 . Average 84 | 9 112 . Maximum Alert Level 2 | . 2 . Low Security (%) 82 | 100 76 100 Level 1 10 | . 14 . Level 2 6 | . 8 . Level 3 . | . . . Level 4 . | . . . Level 5 . | . . . High Security . | . . . Max Security . | . . . Squads Dispatched 2 | . 2 . Investigation 2 | . 2 . Extermination . | . . . Reinforcement . | . . . Assault . | . . . Garrison . | . . . Intercept . | . . . Searches Triggered . | . . . Construction Impeded . | . . . Haulers Reinforced . | . . . Active Scanning Responses . | . . . Cargo Convoy Interrupts . | . . . Stealth | -11 -10 -10 --------- Run | Scr Mat Min Distress Signals 1 | . 1 . Communications Jammed . | . . . Distress Signals . | . . . Times Spotted 26 | . 24 2 Peak Tracking Total 4 | . 4 2 Tactical Retreats 1 | . 1 . Traps | -11 -10 -10 ------- Run | Scr Mat Min Traps Triggered 4 | . 4 . Indirectly . | . . . Trap Hack Attempts . | . . . Triggered . | . . . Disarmed . | . . . Reprogrammed . | . . . Reused . | . . . Traps Extracted . | . . . Installed . | . . . Triggered . | . . . Machines | -11 -10 -10 ---------- Run | Scr Mat Min Machines Disabled . | . . . Max in Single Turn . | . . . Machines Sabotaged . | . . . Garrisons Compromised . | . . . Overloaded Fab Kills . | . . . Hacking | -11 -10 -10 --------- Run | Scr Mat Min Machines Accessed 7 | . 7 . Terminals 6 | . 6 . Fabricators . | . . . Repair Stations . | . . . Recycling Units 1 | . 1 . Scanalyzers . | . . . Garrison Access . | . . . Total Hacks 23 | . 23 . Successful 14 | . 14 . Failed 8 | . 8 . Catastrophic 1 | . 1 . Database Lockouts 1 | . 1 . Manual 17 | . 17 . Terminals 20 | . 20 . Fabricators . | . . . Repair Stations . | . . . Recycling Units 3 | . 3 . Scanalyzers . | . . . Garrison Access . | . . . Terminal Hacks 10 | . 10 . Part Schematic 2 | . 2 . Robot Analysis 2 | . 2 . Branch Access Points 1 | . 1 . Terminal Index 1 | . 1 . Scanalyzer Index 1 | . 1 . Unreport Threat 2 | . 2 . Zone Layout 1 | . 1 . Fabricator Hacks . | . . . Repair Station Hacks . | . . . Recycling Unit Hacks . | . . . Scanalyzer . | . . . Garrison Access Hacks . | . . . Unauthorized Hacks 4 | . 4 . Terminals 4 | . 4 . Assimilate 1 | . 1 . Botnet 2 | . 2 . Operators 1 | . 1 . Fabricators . | . . . Repair Stations . | . . . Recycling Units . | . . . Scanalyzers . | . . . Garrison Access . | . . . Data Cores Recovered . | . . . Used . | . . . Hacking Detections 6 | . 6 . Full Trace Events . | . . . Feedback Events . | . . . Feedback Blocked . | . . . Robot Schematics Acquired . | . . . Robots Built . | . . . Authchips . | . . . Time . | . . . Total Robot Build Rating . | . . . Part Schematics Acquired 2 | . 2 . Parts Built . | . . . Authchips . | . . . Time . | . . . Total Part Build Rating . | . . . Parts Repaired . | . . . Time . | . . . Parts Recycled . | . . . Recycled Matter . | . . . Retrieved Matter . | . . . Retrieved Components . | . . . Parts Scanalyzed . | . . . Part Schematics Acquired . | . . . Parts Damaged . | . . . Bothacking | -11 -10 -10 ------------ Run | Scr Mat Min Used RIF Installer . | . . . Robots Hacked . | . . . Non-combat . | . . . Combat . | . . . Robot Hacks Applied . | . . . Relay Couplers Released . | . . . Fabnet Peak Effective % . | . . . Robots Rewired . | . . . Allies Hacked . | . . . Hacks Repelled . | . . . Allies | -11 -10 -10 -------- Run | Scr Mat Min Total Allies 1 | . 1 . Largest Group 1 | . 1 1 Highest-Rated Group 10 | . 10 10 Highest-Rated Ally 10 | . 10 10 Total Orders . | . . . Ally Attacks . | . . . Total Damage . | . . . Kills . | . . . Allies Corrupted . | . . . Allies Melted . | . . . Intel | -11 -10 -10 ------- Run | Scr Mat Min Robot Analysis Total 2 | . 2 . Derelict Logs Recovered . | . . . Drone Launches . | . . . Drone Recoveries . | . . . Exploration | -11 -10 -10 ------------- Run | Scr Mat Min Turns Passed 1152 | 236 842 74 Spaces Moved 660 | 139 484 37 Core 11 | 7 . 4 Treads . | . . . Legs 649 | 132 484 33 Wheels . | . . . Hover . | . . . Flight . | . . . Fastest Speed 50 | 50 120 50 Average Speed 128 | 117 127 174 Slowest Speed 190 | 120 190 190 Overloaded Moves . | . . . Propulsion Burnouts . | . . . Robots Hopped . | . . . Cave-ins Triggered . | . . . Exploration Rate (%) 37 | 8 88 16 Regions Visited 2 Branch Regions 1 Pre-discovered Areas . | . . . Known Exits Taken 1 | . 1 . Unknown Exits Taken 1 | 1 . . Scrap Searched . | . . . Spaces Dug 6 | . 6 . Terrain Destroyed 7 | . 7 . Melee 5 | . 5 . Projectile 2 | . 2 . AOE . | . . . Terrain Rammed . | . . . Walls Destroyed . | . . . Machines Disabled . | . . . Actions | -11 -10 -10 --------- Run | Scr Mat Min Total 827 | 177 608 42 Wait 70 | 14 56 . Move 658 | 138 483 37 Hop . | . . . Pick Up 9 | 3 6 . Fast Attach 8 | 7 1 . Attach 1 | . . 1 Detach . | . . . Swap 11 | . 9 2 Drop 5 | . 5 . Fire 59 | 15 42 2 Melee 6 | . 6 . Ram . | . . . Kick . | . . . Crush . | . . . Escape Stasis . | . . . Rewire . | . . . Trap . | . . . Miscellaneous . | . . . Route ------- -11/Scrapyard -10/Materials (discovered 5 exits: *Mat x3 / *Min x2) -10/Mines History --------- Turn | Location | Event 10 | -11/Scrapyard | Discovered new exit (range 16) 237 | -11/Scrapyard | Entered Materials 314 | -10/Materials | Build established: Mutant 526 | -10/Materials | Destroyed 9 combat bots 717 | -10/Materials | Discovered new exit (range 13) 788 | -10/Materials | Discovered new exit (range 16) 838 | -10/Materials | Identified exit to Materials 872 | -10/Materials | Identified exit to Mines 893 | -10/Materials | Discovered exit to Materials (range 9) 898 | -10/Materials | Central database locked down 1079 | -10/Materials | Entered Mines 1079 | -10/Mines | Accompanied by 1 ally 1080 | -10/Mines | Assembled infested the area 1085 | -10/Mines | Assisted by a Guerilla fighting off Assembled 1147 | -10/Mines | Core integrity fell below 50% 1149 | -10/Mines | Core integrity fell below 20% 1151 | -10/Mines | Released all parts (4) 1153 | -10/Mines | Destroyed by D-53 Grenadier with Mini Grenade Launcher Last Messages --------------- coming from, and they're closing on this area, come on!" 01086_ K-01 Serf collects debris. 01105_ T-07 Excavator is excavating. 01112_ The unstable cave ceiling collapses. 01113_ T-07 Excavator is excavating. 01142_ Technician 1a destroyed. 01143_ T-07 Excavator is excavating. 01145_ The unstable cave ceiling collapses. 01145_ Aluminum Leg destroyed. 01146_ Assault Rifle destroyed. 01147_ The unstable cave ceiling collapses. 01148_ T-07 Excavator is excavating. 01149_ Assault Rifle destroyed. 01150_ Ion Engine destroyed. 01151_ Released Signal Interpreter. 01151_ Released Aluminum Leg. 01151_ Released Lrg. Storage Unit. 01151_ Released Aluminum Leg. 01152_ T-07 Excavator is excavating. 01153_ The unstable cave ceiling collapses. Map ----- +----------------------------------------------------+ | ?????????????????????????????????????????????????? | | ?????????????????????????????????????????????????? | | ?????????????????????????????????????????????????? | | ?????????????????????????????????????????????????? | | ?????????????????????????????????????????????????? | | ????????????????????????? ?????????????????????? | | ????????????????????????? ????????????????????? | | ???????????????????????## ????????????????????? | | ???????????????????##### ????????????????????? | | ??????????????????## #????????????????????? | | ??????????????????# #???#####????????????? | | ??????????????????? #??# ##???????????? | | ???????????????????? #? #???????????? | | ????????????????????# ## # ???????????? | | ???????????????????## # # ??????????? | | ???????????????????? # %# ??????????? | | ????????????????????? d ???????????? | | ?????????????????????## d # ???????????? | | ????????????????????## ?????????????? | | ????????????????????# # # #??????????????? | | ????????????????????# / # #???????????????? | | ????????????????????# !=! #???????????????? | | ????????????????????# #|= ## #???????????????? | | ????????????????????# ## #???????????????? | | ????????????????????## ### #???????????????? | | ?????????????????????## @ ##?# ###?????????????? | | ??????????????????????# ####??# #?????????????? | | ??????????????????????# #?????### #?????????????? | | ?????????????????????## #?????### ##########????? | | ?????????????????????# #?????# #????? | | ?????????????????????# #?????# """ #????? | | ?????????????????????## #?????# """ #????? | | ??????????????????????###??????# """ #????? | | ???????????????????????????????# #????? | | ???????????????????????????????# #????? | | ???????????????????????????????# #????? | | ???????????????????????????????# #????? | | ???????????????????????????????##############????? | | ?????????????????????????????????????????????????? | | ?????????????????????????????????????????????????? | | ?????????????????????????????????????????????????? | | ?????????????????????????????????????????????????? | | ?????????????????????????????????????????????????? | | ?????????????????????????????????????????????????? | | ?????????????????????????????????????????????????? | | ?????????????????????????????????????????????????? | | ?????????????????????????????????????????????????? | | ?????????????????????????????????????????????????? | | ?????????????????????????????????????????????????? | | ?????????????????????????????????????????????????? | +----------------------------------------------------+ Best States ------------- Heat Dissipation 25 Energy Generation 10 Energy Capacity 250 Matter Stores 300 Matter Capacity 300 Sight Range 16 Terrain Scan Range 16 Terrain Scan Density 10 Evasion (%) 55 Item Schematics ----------------- Hcp. Storage Unit | -10/Materials | Hacked Sml. Storage Unit | -10/Materials | Hacked Robot Schematics ------------------ None Fabricated ------------ Nothing Alien Tech Used ----------------- None Achievements -------------- None Challenges ------------ None Game ------ Seed NodeLargeMicrothruster Manual? 0 Play Time 00:11:13 Cumulative 120.7 hours Start 2022.09.20 @ 17:34:48 End 2022.09.20 @ 17:45:12 Sessions 1 Manual Loads 0 Difficulty Rogue Special Mode None Game No. 94 Rogue 91 Adventurer 3 Explorer 0 Win Type - Total 1 Types 1/0/0/0/0/0/0/0/0 Lore% 53 Gallery% 51 Achievement% 46 Wizard Run 0 Options --------- ASCII 0 Keyboard 0 Movement Numpad Keybinds 0 Fullscreen 1 Font 18/SmallcapsGlow Map View 76x50 Tactical HUD 1 Map Filters NONE Filters NONE Steam 1 RUN: c24e7ae9-61ec-4b6e-8564-b53dff777f92